[Event "45th FIDE Olympiad 2024"]
[Site "Budapest"]
[Date "2024.09.18"]
[Round "7.30"]
[White "So, Wesley"]
[Black "Kourkoulos-Arditis, Stamatis"]
[Result "1/2-1/2"]
[ECO "E73"]
[WhiteElo "2752"]
[BlackElo "2570"]
[Annotator "TA"]
[PlyCount "119"]
[EventDate "2024.09.05"]
[EventType "team-tourn"]
[EventCountry "HUN"]
[SourceTitle "playchess.com"]
[Source "ChessBase"]
[SourceQuality "1"]
[WhiteTeam "United States of America"]
[BlackTeam "Greece"]
[BlackTeamCountry "GRE"]
[TimeControl "40/5400+30:1800+30"]

{[%evp 37,119,0,0,0,0,0,10,0,-7,0,-12,-16,0,0,0,0,0,10,0,0,0,0,17,26,13,22,13,19,10,8,23,13,21,35,93,93,90,87,85,90,94,94,94,58,58,58,58,52,52,57,57,50,51,40,40,40,103,104,104,104,104,111,111,84,84,84,84,84,89,88,89,89,89,89,89,89,89,89,89,89,89,62,89,0]} 1. d4 {[%emt 0:00:06]} Nf6 {[%emt 0:00:05]} 2. c4 {[%emt 0:00:05]} g6 {[%emt 0:00:05]} 3. Nc3 {[%emt 0:00:44]} Bg7 {[%emt 0:00:06]} 4. e4 {[%emt 0:00:24]} d6 {[%emt 0:00:05]} 5. Be2 {[%emt 0:01:10]} O-O {[%emt 0:00:10]} 6. Be3 {[%emt 0:00:06]} e5 {[%emt 0:04:46]} 7. d5 {[%emt 0:00:20]} Na6 {[%emt 0:00:19]} 8. h4 {[%emt 0:00:38]} Nc5 {[%emt 0:00:30] E73: King's Indian: Averbakh Variation without 6...c5.} 9. Qc2 {[%emt 0:00:17]} c6 {[%emt 0:00:17]} 10. Bxc5 {[%emt 0:05:24]} dxc5 {[%emt 0:00:07]} 11. h5 {[%emt 0:00:02]} cxd5 {[%emt 0:02:58]} 12. Nxd5 {[%emt 0:03:32]} Ne8 $146 {[%emt 0:08:13]} ({Predecessor:} 12... Nxd5 13. cxd5 b6 14. Nf3 Bd7 15. Rd1 b5 16. Qxc5 Qa5+ 17. Kf1 Qxa2 18. Qe7 Bc8 19. h6 Bh8 20. Nxe5 Qxb2 21. Nc6 Qf6 22. e5 Qf5 23. Qd6 f6 24. Ne7+ {1-0 Lupulescu,C (2592)-Stoleriu,G (2389) ROM GP Final KO rapid 2022 (1.1)}) 13. Nf3 {[%emt 0:09:23]} Be6 {[%emt 0:01:30]} 14. O-O-O {[%emt 0:16:00]} Bxd5 {[%emt 0:03:50]} 15. Rxd5 {[%emt 0:03:59]} Qc7 {[%emt 0:08:47]} 16. Nd2 {[%emt 0:09:12]} Nf6 {[%emt 0:04:19]} 17. h6 {[%emt 0:02:40]} Bh8 {[%emt 0:00:31]} 18. Rd3 {[%emt 0:00:04]} Rfd8 {[%emt 0:04:25]} 19. Rxd8+ {[%emt 0:06:11]} Rxd8 {[%emt 0:01:52]} 20. Nb1 {[%emt 0:00:13]} Rd4 {[%emt 0:13:23]} 21. Nc3 {[%emt 0:00:10]} a6 {[%emt 0:01:22]} 22. a3 {[%emt 0:11:28]} Ne8 {[%emt 0:09:42]} 23. Kb1 {[%emt 0:02:44]} Bf6 {[%emt 0:04:07]} 24. Nd5 {[%emt 0:05:07]} Qc6 {[%emt 0:01:08]} 25. Qb3 {[%emt 0:02:19]} Kf8 {[%emt 0:03:36]} 26. Rd1 {[%emt 0:01:43]} Rxd1+ {[%emt 0:04:56]} 27. Bxd1 {[%emt 0:00:02]} ({But not} 27. Qxd1 Bg5 $15) 27... Bd8 {[%emt 0:03:10]} 28. Qg3 {[%emt 0:05:52]} Qd6 {[%emt 0:00:51]} 29. Qh3 {[%emt 0:02:27]} Nc7 {[%emt 0:02:25]} 30. Qc8 {[%emt 0:03:30]} Nxd5 {[%emt 0:00:52]} 31. cxd5 {[%emt 0:00:05]} Qc7 {[%emt 0:01:42]} 32. Bg4 {[%emt 0:02:08]} a5 {[%emt 0:07:23]} 33. Qa8 {[%emt 0:01:36]} Ke7 {[%emt 0:03:41]} 34. Bc8 {[%emt 0:01:23]} b5 {[%emt 0:00:29]} 35. Ba6 {[%emt 0:01:30]} c4 {[%emt 0:04:09]} (35... Qb6 $14) 36. Bxb5 $16 {[%emt 0:00:42]} c3 {[%emt 0:01:43]} 37. bxc3 {[%emt 0:00:17]} Qc5 {[%emt 0:00:39]} 38. Qc6 {[%emt 0:04:49]} Bb6 {[%emt 0:00:31]} 39. f3 {[%emt 0:00:49]} Qxc6 {[%emt 0:00:40]} 40. Bxc6 {[%emt 0:00:02]} Be3 {[%emt 0:00:26]} 41. Kc2 {[%emt 0:03:18]} Bxh6 {[%emt 0:01:28]} 42. Kb3 {[%emt 0:00:31]} Bd2 {[%emt 0:01:49]} 43. c4 {[%emt 0:00:05]} Kd6 {[%emt 0:00:10]} 44. Be8 {[%emt 0:00:11]} f5 {[%emt 0:02:13]} 45. Bf7 {[%emt 0:02:01]} f4 {[%emt 0:07:12]} 46. Bg8 {[%emt 0:02:12]} h5 {[%emt 0:00:14]} (46... h6 $1 $14) 47. Bf7 $16 {[%emt 0:00:08]} h4 {[%emt 0:00:03]} 48. Bxg6 {[%emt 0:00:04]} Be1 {[%emt 0:00:20]} 49. Ka4 {[%emt 0:01:58]} Kc5 {[%emt 0:00:06]} 50. d6 {[%emt 0:00:03]} Kxd6 {[%emt 0:00:04]} 51. Kb5 {[%emt 0:00:04]} Kc7 {[%emt 0:00:13]} 52. Kc5 {[%emt 0:00:16]} Bc3 {[%emt 0:00:20]} 53. Kd5 {[%emt 0:00:13]} Bb2 {[%emt 0:00:13]} 54. Be8 {[%emt 0:00:18]} Bc3 {[%emt 0:00:19] [#]} 55. Bb5 $1 {[%emt 0:00:20]} Bb2 {[%emt 0:00:18]} 56. c5 {[%emt 0:00:12]} Bc3 {[%emt 0:00:13]} 57. Ke6 {[%emt 0:00:29]} Bd4 {[%emt 0:00:16]} 58. Kf5 {[%emt 0:00:10]} Bc3 {[%emt 0:00:40]} 59. Kg4 {[%emt 0:00:15]} Be1 {[%emt 0:00:08]} 60. Kf5 {[%emt 0:00:04]} (60. a4 $16) 1/2-1/2

[Event "45th FIDE Olympiad 2024"]
[Site "Budapest"]
[Date "2024.09.18"]
[Round "7.30"]
[White "Al Ibrahim, Abdulrahman"]
[Black "Kanegeni, Matthew Kamau"]
[Result "1/2-1/2"]
[WhiteElo "1932"]
[BlackElo "1976"]
[PlyCount "118"]
[EventDate "2024.09.05"]
[EventType "team-tourn"]
[EventCountry "HUN"]
[WhiteTeam "Kuwait"]
[BlackTeam "Kenya"]
[WhiteTeamCountry "KUW"]
[BlackTeamCountry "KEN"]
[TimeControl "40/5400+30:1800+30"]

1. e4 e5 2. Nf3 Nc6 3. Bb5 a6 4. Ba4 Nf6 5. d3 Bc5 6. Bxc6 dxc6 7. Nbd2 Be6 8. O-O Nd7 9. Nb3 Be7 10. d4 Bxb3 11. axb3 exd4 12. Nxd4 O-O 13. Be3 Bc5 14. Nf5 Bxe3 15. Nxe3 Re8 16. f3 Qe7 17. Kh1 Rad8 18. Qe1 Ne5 19. Rd1 Qc5 20. Rd2 Ng6 21. Qd1 Rxd2 22. Qxd2 Qg5 23. Rd1 Ne5 24. Nf5 Qxd2 25. Rxd2 g6 26. Ne3 f6 27. Kg1 Kf8 28. Kf2 Ke7 29. h3 b6 30. Rd1 a5 31. Ng4 Nf7 32. f4 h5 33. Nh2 Nd6 34. Kf3 Kf7 35. Re1 Nb5 36. Rd1 Re7 37. h4 Nd6 38. Re1 Nf5 39. Kf2 Nd4 40. c3 Nxb3 41. Re2 Nc5 42. Kf3 a4 43. g4 Rd7 44. gxh5 gxh5 45. Nf1 Rd3+ 46. Re3 Rd1 47. Ng3 Rb1 48. Re2 Nd3 49. e5 fxe5 50. fxe5 Rxb2 51. e6+ Ke8 52. Re4 Nc5 53. Re1 Nd3 54. Re4 a3 55. Nxh5 Rb5 56. Nf6+ Ke7 57. Ng8+ Ke8 58. Nf6+ Ke7 59. Ng8+ Ke8 1/2-1/2

[Event "45th FIDE Olympiad 2024"]
[Site "Budapest"]
[Date "2024.09.18"]
[Round "7.31"]
[White "Mastrovasilis, Dimitrios"]
[Black "Dominguez Perez, Leinier"]
[Result "0-1"]
[ECO "B51"]
[WhiteElo "2550"]
[BlackElo "2748"]
[Annotator "TA"]
[PlyCount "62"]
[EventDate "2024.09.05"]
[EventType "team-tourn"]
[EventCountry "HUN"]
[SourceTitle "playchess.com"]
[Source "ChessBase"]
[SourceQuality "1"]
[WhiteTeam "Greece"]
[BlackTeam "United States of America"]
[WhiteTeamCountry "GRE"]
[TimeControl "40/5400+30:1800+30"]

{[%evp 9,62,7,1,7,6,11,7,14,10,12,16,0,17,0,16,0,29,33,30,20,47,0,0,-21,-13,-16,-18,-29,-23,-61,-77,-67,-54,-60,-42,-59,-47,-60,-65,-77,-54,-88,-70,-318,-329,-476,-473,-474,-476,-473,-416,-410,-417,-417,-417]} 1. e4 {[%emt 0:00:07]} c5 {[%emt 0:00:12]} 2. Nf3 {[%emt 0:00:14]} d6 {[%emt 0:00:04]} 3. Bb5+ {[%emt 0:00:18]} Nd7 {[%emt 0:02:23]} 4. d4 {[%emt 0:00:24]} cxd4 {[%emt 0:00:50]} 5. Nxd4 {[%emt 0:00:17]} Ngf6 {[%emt 0:00:26]} 6. O-O {[%emt 0:00:51]} a6 {[%emt 0:00:36]} 7. Bd3 {[%emt 0:00:30]} Nc5 {[%emt 0:00:57]} 8. Nc3 {[%emt 0:00:38] The position is equal.} e6 {[%emt 0:00:31]} 9. a4 {[%emt 0:01:57]} Be7 {[%emt 0:00:54]} 10. Re1 {[%emt 0:08:22]} O-O {[%emt 0:05:03]} 11. Bf1 {[%emt 0:09:54]} Qc7 {[%emt 0:03:20]} 12. a5 {[%emt 0:02:49]} b5 {[%emt 0:01:35]} 13. axb6 {[%emt 0:03:18]} Qxb6 {[%emt 0:00:03] [#]} 14. b4 $1 {[%emt 0:21:01]} Ncd7 {[%emt 0:00:12][%cal Oc8b7]} 15. b5 {[%emt 0:11:21]} (15. Na4 $1 $14 {is more appropriate.} Qc7 16. c4) 15... Bb7 $11 {[%emt 0:03:36]} 16. Be3 {[%emt 0:02:35]} Qc7 {[%emt 0:20:26]} 17. bxa6 {[%emt 0:00:46]} Bxa6 {[%emt 0:00:04]} 18. Bxa6 {[%emt 0:12:23]} Qxc3 {[%emt 0:00:08]} 19. f3 {[%emt 0:07:58]} d5 {[%emt 0:07:56]} 20. exd5 {[%emt 0:00:53]} Nxd5 {[%emt 0:00:06]} 21. Bf2 {[%emt 0:00:12]} Bb4 {[%emt 0:00:38]} 22. Bb5 {[%emt 0:06:17]} N7f6 {[%emt 0:01:41] Excellent horsemanship.} 23. Rxa8 {[%emt 0:03:04]} Rxa8 {[%emt 0:00:03]} 24. Qe2 {[%emt 0:01:19]} Bc5 {[%emt 0:21:40] Black is more active.} 25. Qd3 {[%emt 0:02:28]} Qb2 {[%emt 0:05:15] Hoping for ...Ra1.} 26. Bc6 $2 {[%emt 0:01:26] Loses the game.} (26. g3 $15) 26... Ra1 $19 {[%emt 0:02:05]} 27. Rd1 {[%emt 0:01:09]} (27. Rxa1 $142 Qxa1+ 28. Qf1 Bxd4 29. Qxa1 Bxa1 30. c4) 27... Nb4 {[%emt 0:00:36]} ({Much less strong is} 27... Qc3 28. Bxd5 Nxd5 (28... Qxd3 $2 29. Rxa1 Qd2 30. Ra8+ Bf8 31. Bc4 $19) 29. Nb3 Qxd3 30. Rxa1 $19) 28. Qf1 {[%emt 0:00:33] [#]} Rxd1 {[%emt 0:00:17]} (28... Nxc2 $2 29. Rxa1 Nxa1 30. Qd1 $17) 29. Qxd1 {[%emt 0:00:07]} Nxc6 {[%emt 0:00:12]} 30. Nxc6 {[%emt 0:00:28] White threatens Qd8+ and mate.} Bxf2+ {[%emt 0:00:05]} 31. Kxf2 {[%emt 0:00:05] Intending Qd8+ and mate.} Qb6+ {[%emt 0:00:05] Weighted Error Value: White=0.30/Black=0.09 (flawless) .  Loses game:     	White=1     	---        Mistake:       	White=2     	---        Inaccurate:     	White=2     	Black=1      OK:         	White=10    	Black=10     Best:        	White=1     	Black=4} 0-1

[Event "45th FIDE Olympiad 2024"]
[Site "Budapest"]
[Date "2024.09.18"]
[Round "7.31"]
[White "Oluka, Robert Mcligeyo"]
[Black "Hussain, Hashem"]
[Result "1-0"]
[WhiteElo "1990"]
[BlackElo "1807"]
[PlyCount "51"]
[EventDate "2024.09.05"]
[EventType "team-tourn"]
[EventCountry "HUN"]
[WhiteTeam "Kenya"]
[BlackTeam "Kuwait"]
[WhiteTeamCountry "KEN"]
[BlackTeamCountry "KUW"]
[TimeControl "40/5400+30:1800+30"]

1. c4 Nf6 2. Nf3 g6 3. g3 Bg7 4. Bg2 d6 5. Nc3 e5 6. e4 O-O 7. O-O c5 8. d3 Nc6 9. Rb1 a5 10. Bd2 Ne8 11. Nd5 Nc7 12. Nb6 Ra6 13. Nxc8 Qxc8 14. Ne1 Nd4 15. f4 f5 16. exf5 gxf5 17. Nc2 Nce6 18. Ne3 exf4 19. Nd5 Qd7 20. Bxf4 Nxf4 21. Nxf4 b5 22. Re1 bxc4 23. Bd5+ Kh8 24. Qh5 Be5 25. Ng6+ Kg7 26. Qxh7+ 1-0

[Event "45th FIDE Olympiad 2024"]
[Site "Budapest"]
[Date "2024.09.18"]
[Round "7.32"]
[White "Aronian, Levon"]
[Black "Kelires, Andreas"]
[Result "1-0"]
[ECO "B51"]
[WhiteElo "2729"]
[BlackElo "2536"]
[Annotator "TA"]
[PlyCount "77"]
[EventDate "2024.09.05"]
[EventType "team-tourn"]
[EventCountry "HUN"]
[SourceTitle "playchess.com"]
[Source "ChessBase"]
[SourceQuality "1"]
[WhiteTeam "United States of America"]
[BlackTeam "Greece"]
[BlackTeamCountry "GRE"]
[TimeControl "40/5400+30:1800+30"]

{[%evp 9,77,20,0,10,16,20,36,35,26,38,44,38,46,39,53,42,91,66,88,74,75,70,107,107,122,92,104,100,106,86,102,110,143,139,143,138,166,131,150,140,176,185,184,160,171,167,357,325,339,313,315,313,471,447,481,483,452,466,500,471,572,556,608,567,711,736,730,690,726,723]} 1. e4 {[%emt 0:00:03]} c5 {[%emt 0:00:07]} 2. Nf3 {[%emt 0:00:05]} d6 {[%emt 0:00:04]} 3. Bb5+ {[%emt 0:00:04]} Nd7 {[%emt 0:00:13]} 4. O-O {[%emt 0:00:10]} a6 {[%emt 0:00:34]} 5. Be2 {[%emt 0:00:05]} Ngf6 {[%emt 0:01:07]} 6. d3 {[%emt 0:00:10]} g6 {[%emt 0:02:58]} 7. c4 {[%emt 0:00:12]} Bg7 {[%emt 0:01:54]} 8. Nc3 {[%emt 0:00:19] White is slightly better.} O-O {[%emt 0:01:44]} 9. d4 {[%emt 0:00:09]} cxd4 {[%emt 0:06:59]} 10. Nxd4 {[%emt 0:01:06]} Nc5 {[%emt 0:04:48][%cal Bd7c5,Bc5e6,Be6f4,Bf4g6,Bg6h4][%mdl 32]} 11. f3 {[%emt 0:01:38]} Ne6 {[%emt 0:10:53]} 12. Nc2 {[%emt 0:05:16]} g5 {[%emt 0:05:24]} (12... Nh5 $14) 13. Rf2 {[%emt 0:05:49]} Nf4 {[%emt 0:06:41]} 14. Bf1 {[%emt 0:00:15]} h6 {[%emt 0:01:22]} 15. Be3 {[%emt 0:02:57]} Be6 {[%emt 0:03:49]} 16. Nd4 {[%emt 0:03:03]} Ng6 {[%emt 0:07:32]} 17. Qb3 {[%emt 0:04:09]} Bd7 {[%emt 0:04:13]} 18. Nf5 {[%emt 0:12:18]} ({Reject} 18. Qxb7 $6 Rb8 19. Qxa6 Ra8 $11) 18... Bxf5 {[%emt 0:06:12]} 19. exf5 {[%emt 0:00:05]} Nh4 {[%emt 0:02:32] Black is weak on the light squares} 20. Bd3 {[%emt 0:00:40][%cal Og2g3] [#] g3! would now be deadly.} ({Inferior is} 20. Qxb7 Nxf5 21. Bc1 Nd7 $17) 20... e6 {[%emt 0:01:11]} 21. fxe6 {[%emt 0:03:28]} ({But not} 21. Qxb7 $6 exf5 22. Rd2 Nd7 $16) 21... fxe6 {[%emt 0:00:11]} 22. Qxb7 {[%emt 0:00:07] White is more active.} Rf7 {[%emt 0:02:57]} 23. Qb3 {[%emt 0:03:17]} Nd7 {[%emt 0:02:22]} 24. Rd1 {[%emt 0:01:15]} Qa5 {[%emt 0:04:47]} 25. Qc2 {[%emt 0:06:33]} Ne5 {[%emt 0:01:16]} 26. Re2 {[%emt 0:10:25]} Rc8 {[%emt 0:11:27]} 27. Bf2 {[%emt 0:01:25]} d5 $2 {[%emt 0:00:37]} (27... Qc7 28. Ne4 Bf8) 28. cxd5 {[%emt 0:00:54]} exd5 {[%emt 0:01:23][%cal Od5d4]} 29. Bh7+ {[%emt 0:03:41] This pair of bishops is nice.} Kh8 {[%emt 0:00:04][%cal Od5d4]} 30. Rxd5 {[%emt 0:00:10]} Nexf3+ {[%emt 0:05:38]} (30... Qxd5 $142 31. Nxd5 Rxc2 32. Bxc2 Rd7) 31. gxf3 $18 {[%emt 0:00:07] White is clearly winning.} Nxf3+ {[%emt 0:00:07]} 32. Kh1 {[%emt 0:01:26]} Qc7 {[%emt 0:00:50][%csl Gf3][%cal Rc7h2] [#]} 33. Bg3 {[%emt 0:00:06]} Qb6 {[%emt 0:02:25]} 34. Rf2 {[%emt 0:00:46][%cal Be2f2,Bf2f1,Bf1c1][%mdl 32]} Qe3 {[%emt 0:01:17] Threatens to win with ...Qe1+.} 35. Bd3 {[%emt 0:03:08]} Re8 {[%emt 0:01:35][%cal Bc8e8,Be8e2,Be2b2][%mdl 32]} 36. Qe2 {[%emt 0:01:26]} Qc1+ {[%emt 0:00:38]} 37. Rf1 {[%emt 0:00:10]} Rxe2 {[%emt 0:00:20]} 38. Rxc1 {[%emt 0:00:17]} Rxb2 {[%emt 0:00:28]} 39. Rd8+ {[%emt 0:00:14] Weighted Error Value: White=0.08 (flawless) /Black=0.42.  Mistake:       	---       	Black=3      Inaccurate:     	---       	Black=1      OK:         	White=17    	Black=6      Best:        	---       	Black=2} 1-0

[Event "45th FIDE Olympiad 2024"]
[Site "Budapest"]
[Date "2024.09.18"]
[Round "7.32"]
[White "Alabdaljader, Mohammed"]
[Black "Mutuge, Ian"]
[Result "0-1"]
[WhiteElo "1677"]
[BlackElo "1938"]
[PlyCount "106"]
[EventDate "2024.09.05"]
[EventType "team-tourn"]
[EventCountry "HUN"]
[WhiteTeam "Kuwait"]
[BlackTeam "Kenya"]
[WhiteTeamCountry "KUW"]
[BlackTeamCountry "KEN"]
[TimeControl "40/5400+30:1800+30"]

1. e4 c5 2. b3 d6 3. Bb2 e6 4. Bb5+ Bd7 5. Bxd7+ Nxd7 6. Nf3 Ngf6 7. Qe2 a6 8. d3 Be7 9. Nbd2 O-O 10. O-O b5 11. a4 Qc7 12. Rfe1 Ne5 13. axb5 axb5 14. d4 Nxf3+ 15. Nxf3 c4 16. bxc4 bxc4 17. Bc3 d5 18. e5 Ne4 19. Qe3 Rxa1 20. Rxa1 Rb8 21. Ba5 Qb7 22. Nd2 Nxd2 23. Qxd2 Ra8 24. Rd1 h6 25. g3 Qb5 26. Bc3 Ra2 27. Qe2 Qa4 28. Rd2 Qa3 29. Qe3 Qc1+ 30. Kg2 Rxc2 31. Rxc2 Qxc2 32. Qd2 Qxd2 33. Bxd2 Kf8 34. Kf1 Ke8 35. Ke1 Kd7 36. Kd1 Kc6 37. Kc2 Kb5 38. f4 Bb4 39. Be3 Ba5 40. Bc1 h5 41. Be3 Ka4 42. Bc1 c3 43. h3 g6 44. g4 hxg4 45. hxg4 Kb4 46. Kd3 Kb3 47. Ke2 Kc2 48. Ba3 Kb1 49. f5 c2 50. Kf3 Bb4 51. Bxb4 c1=Q 52. Bc5 gxf5 53. gxf5 Qf1+ {0-} 0-1

[Event "45th FIDE Olympiad 2024"]
[Site "Budapest"]
[Date "2024.09.18"]
[Round "7.33"]
[White "Dragnev, Valentin"]
[Black "Carlsen, Magnus"]
[Result "0-1"]
[ECO "C41"]
[WhiteElo "2556"]
[BlackElo "2832"]
[Annotator "TA"]
[PlyCount "80"]
[EventDate "2024.09.05"]
[EventType "team-tourn"]
[EventCountry "HUN"]
[SourceTitle "playchess.com"]
[Source "ChessBase"]
[SourceQuality "1"]
[WhiteTeam "Austria"]
[BlackTeam "Norway"]
[WhiteTeamCountry "AUT"]
[BlackTeamCountry "NOR"]
[TimeControl "40/5400+30:1800+30"]

{[%evp 20,80,38,22,37,21,19,28,25,26,28,19,64,0,43,31,42,0,0,-84,-102,-105,-95,-104,-95,-68,-68,-104,-126,-140,-138,-128,-87,-54,-77,-175,-172,-162,-56,-109,-89,-204,-199,-308,-283,-375,-309,-354,-364,-356,-339,-476,-435,-788,-782,-1675,-1474,-29985,-29986,-29986,-29987,-29990,-29991]} 1. e4 {[%emt 0:00:03]} d6 {[%emt 0:09:07]} 2. d4 {[%emt 0:00:13]} Nf6 {[%emt 0:00:06]} 3. Nc3 {[%emt 0:00:05]} e5 {[%emt 0:00:05]} 4. Nf3 {[%emt 0:01:05]} Nbd7 {[%emt 0:00:06]} 5. Bc4 {[%emt 0:01:16]} Be7 {[%emt 0:00:15]} 6. O-O {[%emt 0:00:42]} O-O {[%emt 0:00:08]} 7. a4 {[%emt 0:01:43]} c6 {[%emt 0:01:20]} 8. h3 {[%emt 0:01:48]} h6 {[%emt 0:07:59] Nowadays more popular than 8...b6.} 9. Be3 {[%emt 0:01:40]} Re8 {[%emt 0:04:04] C41: Philidor Defence.} 10. a5 {[%emt 0:03:32]} exd4 {[%emt 0:04:16]} 11. Qxd4 {[%emt 0:03:01]} Bf8 {[%emt 0:09:10]} 12. Rfe1 {[%emt 0:21:05]} Qc7 {[%emt 0:04:12]} 13. Bf4 $146 {[%emt 0:08:02]} ({Predecessor:} 13. Ba2 Ne5 14. Nh4 Be6 15. Bxe6 Rxe6 16. f4 Ned7 17. Qd3 Rae8 18. Bxa7 c5 19. f5 {0-1 Hulka,V (1892)-Petrova,I (2088) Kiev Shystarev Memorial 1st 2020 (3)}) 13... Ne5 {[%emt 0:01:37]} 14. Be2 {[%emt 0:00:07]} Bd7 {[%emt 0:04:23]} 15. Bg3 {[%emt 0:00:16]} a6 {[%emt 0:08:55]} 16. Bh4 {[%emt 0:08:19]} ({White should play} 16. Nd2 $14) 16... Re6 {[%emt 0:08:11]} 17. Nxe5 {[%emt 0:02:49]} Rxe5 {[%emt 0:02:50]} 18. b4 {[%emt 0:10:33]} Rae8 {[%emt 0:04:00]} 19. Bg3 {[%emt 0:07:34]} (19. Bxf6 $11 {keeps the balance.} gxf6 20. f3) 19... c5 $1 $17 {[%emt 0:02:29]} 20. Qd1 {[%emt 0:01:50]} cxb4 $1 {[%emt 0:01:02]} 21. Bxe5 {[%emt 0:00:05]} dxe5 {[%emt 0:00:08]} 22. Nd5 {[%emt 0:00:36]} Nxd5 {[%emt 0:00:14]} 23. exd5 {[%emt 0:02:22]} e4 {[%emt 0:04:04]} 24. Bg4 {[%emt 0:08:46]} f5 {[%emt 0:00:15]} 25. Bh5 {[%emt 0:00:02]} Rc8 {[%emt 0:04:35]} 26. d6 {[%emt 0:05:31]} Qc5 $1 {[%emt 0:00:09]} (26... Qxd6 27. Qxd6 Bxd6 28. Rad1 $16) (26... Bxd6 $2 27. Qd5+ Kh8 28. Rad1 Bh2+ 29. Kh1 $18) 27. c3 {[%emt 0:00:30]} (27. Qd2 $17 {keeps fighting.}) 27... bxc3 $19 {[%emt 0:02:37]} (27... Bxd6 28. cxb4 Qe5 29. g3 $17) 28. Qb3+ {[%emt 0:00:53]} Qc4 {[%emt 0:07:48]} (28... Kh8 $1 $19 29. Qxb7 Bb5 (29... Qxd6 30. Red1 $11)) 29. Qxb7 {[%emt 0:00:16] [#]} ({Better is} 29. Bd1 $15 Qxb3 (29... Bxd6 30. Qxc4+ Rxc4 31. Bb3 $18) 30. Bxb3+ Kh7 31. Rad1) 29... Qe6 $1 $17 {[%emt 0:00:48]} 30. Qxa6 {[%emt 0:04:57]} (30. Rxe4 $17 fxe4 31. Bg4 Qxd6 32. Qxd7) 30... Bxd6 $19 {[%emt 0:00:22]} (30... Qxd6 $2 31. Qxd6 Bxd6 32. Red1 $18 (32. a6 e3 $18)) 31. Qa7 {[%emt 0:00:42]} (31. Qb7 {might work better.}) 31... c2 $19 {[%emt 0:02:49]} 32. a6 {[%emt 0:01:52]} Bf4 {[%emt 0:02:13]} 33. Qb7 {[%emt 0:01:06]} Rb8 {[%emt 0:00:33]} (33... c1=B $2 34. a7 Bcd2 35. a8=Q $18 (35. a8=R Bxe1 36. Rxc8+ Bxc8 $16)) (33... c1=Q 34. Raxc1 Bxc1 35. a7 $14) 34. Qa7 {[%emt 0:01:19] [#]} Qd6 $1 {[%emt 0:02:02]} (34... c1=R $2 35. Rexc1 (35. Raxc1 Kh7 $18) 35... Be8 36. Bxe8 Rxe8 37. Re1 $18) 35. Be2 {[%emt 0:01:23]} (35. Kh1 {was called for.}) 35... Be6 {[%emt 0:01:11]} (35... c1=B $2 {is the wrong capture.} 36. Rexc1 (36. Raxc1 Bxc1 37. Rxc1 Be6 $18) 36... Bxc1 37. Rxc1 $18) 36. Bf1 {[%emt 0:01:34]} (36. Kh1 $142) 36... Kh7 $19 {[%emt 0:00:20]} ({Worse is} 36... c1=B 37. Raxc1 (37. Rexc1 Bxc1 38. Rxc1 Rb2 $18) 37... Bxc1 38. Rxc1 $18) 37. Rec1 {[%emt 0:00:24]} Bxc1 {[%emt 0:00:15]} 38. Rxc1 {[%emt 0:00:01]} Rb1 {[%emt 0:00:10]} 39. Qe3 {[%emt 0:00:18]} Qd1 {[%emt 0:00:06]} 40. a7 {[%emt 0:00:42]} Qxc1 {[%emt 0:00:15]} 0-1